Cogmind - Beta 15 @@@ ROGUE MODE // 2025.08.10 @ 18:16:42 Player: Mogwok Wargfriend Result: Destroyed by SX-0TS(R) with Subdweller Machine Gun Performance ------------- Evolutions (0) 0 Regions Visited (2) 400 Robots Destroyed (31) 155 Value Destroyed (600) 600 Prototype IDs (2) 40 Alien Tech Used (0) 0 Bonus (0) 0 TOTAL SCORE: 1195 Bonus ------- None Cogmind --------- Core Integrity 0/250 Matter 300/300 Energy 125/125 System Corruption 1% Temperature Cool (0) Movement Treading (560) Ox4 Location -10/Subcaves Parts ------- > --- POWER (1) -------- Light Ion Engine > --- PROPULSION (2) --- Spiked Treads Subdweller Monowheel > --- UTILITY (2) ------ Huge Storage Unit Makeshift Light Armor Plating > --- WEAPON (2) ------- EM Pulse Gun Barrage Gun > --- INVENTORY (25) --- Subdweller Power Source Improved Heat Sink Cooling System Huge Storage Unit High-capacity Matter Pod (200) Sensor Array Light Armor Plating Light Armor Plating Light Armor Plating Makeshift Light Armor Plating Hacking Suite Authchip [R/Combat] Authchip [R/Combat] Authchip [Device] Authchip [Device] Authchip [Armor] EM Pulse Gun Medium Laser Medium Laser Medium Laser Subdweller Machine Gun Subdweller Machine Gun Battle Cannon Grenade Launcher Mining Laser Peak State ------------ > --- POWER ------------ Light Ion Engine > --- PROPULSION ------- Spiked Treads Subdweller Monowheel > --- UTILITY ---------- Huge Storage Unit Makeshift Light Armor Plating > --- WEAPON ----------- EM Pulse Gun Barrage Gun > --- INVENTORY -------- Subdweller Power Source Improved Heat Sink Cooling System Huge Storage Unit High-capacity Matter Pod Sensor Array Light Armor Plating Light Armor Plating Light Armor Plating Makeshift Light Armor Plating Hacking Suite Authchip [R/Combat] Authchip [R/Combat] Authchip [Device] Authchip [Device] Authchip [Armor] EM Pulse Gun Medium Laser Medium Laser Medium Laser Subdweller Machine Gun Subdweller Machine Gun Battle Cannon Grenade Launcher Mining Laser [Rating: 19] Favorites ----------- Power Light Ion Engine Engine Light Ion Engine Propulsion Compact Wheel Treads Spiked Treads Wheel Compact Wheel Utility Huge Storage Unit Device Seismic Detector Storage Huge Storage Unit Protection Makeshift Light Armor Plating Weapon Medium Laser Energy Gun Medium Laser Ballistic Gun Assault Rifle Special Weapon Mining Laser Build | -11 -10 -10 ------- Run | Yrd Mat Sub Slots Evolved . | . . . Power . | . . . Propulsion . | . . . Utility . | . . . Weapon . | . . . Parts Attached 33 | 7 12 14 Power 4 | 1 1 2 Engine 4 | 1 1 2 Core . | . . . Reactor . | . . . Propulsion 9 | 2 2 5 Treads 1 | . . 1 Leg . | . . . Wheel 8 | 2 2 4 Hover . | . . . Flight . | . . . Utility 9 | 2 6 1 Device 5 | 1 4 . Storage 2 | 1 1 . Processor . | . . . Hackware . | . . . Protection 2 | . 1 1 Artifact . | . . . Weapon 11 | 2 3 6 Energy Gun 7 | 1 3 3 Energy Cannon . | . . . Ballistic Gun 3 | 1 . 2 Ballistic Cannon . | . . . Launcher . | . . . Special Weapon 1 | . . 1 Impact Weapon . | . . . Slashing Weapon . | . . . Piercing Weapon . | . . . Special Melee Weapon . | . . . Unidentified Prototypes . | . . . Parts Lost 14 | . 6 8 Power 3 | . 1 2 Propulsion 5 | . 1 4 Utility 2 | . 2 . Weapon 4 | . 2 2 Highest Loss Streak 5 | . 5 3 To Critical Strikes . | . . . Average Backups 21 | 3 20 24 Power . | . . 1 Propulsion 1 | 1 2 1 Utility 11 | . 10 14 Weapon 7 | 1 8 7 Tool/Special . | . . . Unused Backups 28 | . 8 20 Power 1 | . . 1 Propulsion 2 | . 2 . Utility 16 | . 3 13 Weapon 9 | . 3 6 Tool/Special . | . . . Average Slot Usage (%) 97 | . 99 96 Engine 14 | . 14 14 Treads 2 | . . 4 Wheel 23 | . 27 20 Device 2 | . 6 . Storage 14 | . 14 14 Protection 10 | . 7 14 Energy Gun 23 | . 22 24 Ballistic Gun 4 | . 5 3 Peak Build Rating 19 | 7 12 19 Average Rating 12 | 5 9 15 On Entrance 6 | . 7 11 Naked Turns . | . . . Heaviest Build 92 | 15 90 92 Greatest Support 36 | 32 32 36 Greatest Overweight (x) 30 | 2 5 30 Average Overweight (x) 3 | . 2 5 Largest Inventory Capacity 25 | 8 25 25 Average Capacity 23 | 7 23 25 Most Carried 25 | 6 25 25 Average Carried 21 | 3 21 24 Final Capacity 25 | 8 25 25 Final Carried 25 | 6 25 25 Class Distribution -------------------- 100% | Mutant Dominant Class ---------------- Mutant | -10/Materials Mutant | -10/Subcaves Resources | -11 -10 -10 ----------- Run | Yrd Mat Sub Matter Collected 908 | 303 438 167 Remotely . | . . . Salvage Created 1126 | 122 727 277 Parts 59 | 5 40 14 Haulers Intercepted 2 | . 2 . Recyclers Shooed 2 | . 2 . Parts Field Recycled . | . . . Retrieved Matter . | . . . Parts Self-Destructed 7 | . . 7 Prevented . | . . . Kills | -11 -10 -10 ------- Run | Yrd Mat Sub Combat Hostiles Destroyed 15 | . 9 6 Guns 15 | . 9 6 Classes Destroyed 10 | 2 7 1 Worker 4 | . 4 . Builder 1 | . 1 . Tunneler 3 | 3 . . Hauler 2 | . 2 . Recycler 3 | 1 2 . Operator 1 | . 1 . Watcher 2 | . 2 . Swarmer 3 | . 3 . Grunt 6 | . 6 . Subdweller 6 | . . 6 Best Kill Streak 3 | 3 3 2 Combat Bots Only 3 | . 3 2 Max Kills in Single Turn 1 | 1 1 1 Gunslinging . | . . . Exploded . | . . . Melee . | . . . Uniques/NPCs Destroyed . | . . . Combat | -11 -10 -10 -------- Run | Yrd Mat Sub Hostile Shots Fired 136 | . 75 61 Missed 42 | . 27 15 Hits 94 | . 48 46 Projectile 94 | . 48 46 AOE 3 | . . 3 Critical Strikes 1 | . 1 . Damage Taken 1692 | . 585 1107 Core 257 | . 121 136 Absorbed by Shields . | . . . Core Remaining (%) 100 | 100 . . Volleys Fired 128 | 11 71 46 Largest 2 | 2 2 2 Hottest 100 | 70 90 100 Shots Fired 249 | 22 140 87 Gun 245 | 22 140 83 Cannon . | . . . Launcher . | . . . Special 4 | . . 4 Kinetic 54 | 11 42 1 Thermal 185 | 11 98 76 Explosive . | . . . Electromagnetic 10 | . . 10 Robot Hit Streak 16 | 15 16 10 Robot Miss Streak 9 | 1 9 3 Penetration Max . | . . . Secondary Targets 3 | . 3 . Max Gunslinging Chain 1 | . 1 . Shots Hit Robots 155 | 18 86 51 Core Hits 53 | 5 35 13 Critical Kills . | . . . Critical Parts Destroyed . | . . . Critical Strikes 8 | . 6 2 Burn 8 | . 6 2 Melee Attacks . | . . . Impact . | . . . Slashing . | . . . Piercing . | . . . Sneak Attacks . | . . . Combat Hostiles . | . . . Follow-up Attacks . | . . . Damage Inflicted 1813 | 234 1040 539 Guns 1813 | 234 1040 539 Cannons . | . . . Explosions . | . . . Melee . | . . . Ramming . | . . . Kinetic 429 | 109 320 . Thermal 1307 | 125 720 462 Explosive . | . . . Electromagnetic 77 | . . 77 Impact . | . . . Slashing . | . . . Piercing . | . . . Highest Corruption 1 | . 1 1 Average Corruption 1 | . 1 1 Corruption Purged . | . . . Corruption Blocked . | . . . Effects 18 | . 6 12 Message Errors 3 | . 1 2 Matter Fused 4 | . 2 2 Heat Flow Errors 1 | . . 1 Energy Discharges 3 | . 1 2 Data Loss (minor) 1 | . 1 . Data Loss (major) 3 | . 1 2 Misfires 1 | . . 1 Alerts 1 | . . 1 Weapon Failures 1 | . . 1 Overload Shots . | . . . Overflow Damage . | . . . Projectiles . | . . . Explosions . | . . . Melee . | . . . Knockbacks . | . . . Impact . | . . . Kinetic . | . . . Secondary . | . . . Self-Inflicted Damage . | . . . Shots . | . . . Rammed . | . . . Targets Rammed . | . . . Kicked . | . . . Crushed . | . . . Highest Temperature 225 | 45 225 159 Average Temperature 47 | 18 56 15 Received Heat Transfer 444 | . 237 207 Effects 2 | . 2 . Interference 2 | . 2 . Siege Activations . | . . . Martial Activations . | . . . Shielding Activations . | . . . Robots Disrupted . | . . . Combat Hostiles . | . . . Robots Corrupted . | . . . Combat Hostiles . | . . . Parts Fried 1 | . . 1 Impact Corruptions . | . . . Robots Melted . | . . . Combat Hostiles . | . . . Parts Melted 10 | . 8 2 Heat Transferred 4299 | 370 2412 1517 Parts Sabotaged . | . . . Parts Stolen . | . . . Parts Stripped . | . . . Power Chain Reactions . | . . . Alert | -11 -10 -10 ------- Run | Yrd Mat Sub Maximum Alert Level . | . . . Low Security (%) 100 | 100 100 . Level 1 . | . . . Level 2 . | . . . Level 3 . | . . . Level 4 . | . . . Level 5 . | . . . High Security . | . . . Max Security . | . . . Peak Influence 109 | 10 109 . Initial . | . . . Average 25 | 1 27 . Influence Increases 385 | 20 365 . Destroy 0b10 Robot/C 180 | . 180 . Destroy 0b10 Robot/NC 80 | 20 60 . Destroy Leader 58 | . 58 . Successful Hack 67 | . 67 . Influence Decreases 385 | 20 365 . Time Decay 325 | 20 305 . Lost Part 60 | . 60 . Squads Dispatched 2 | . 2 . Investigation 1 | . 1 . Extermination . | . . . Reinforcement 1 | . 1 . Assault . | . . . Garrison . | . . . Intercept . | . . . Searches Triggered . | . . . Construction Impeded . | . . . Haulers Reinforced . | . . . Active Scanning Responses . | . . . Cargo Convoy Interrupts . | . . . Stealth | -11 -10 -10 --------- Run | Yrd Mat Sub Distress Signals . | . . . Communications Jammed . | . . . Distress Signals . | . . . Times Spotted 31 | . 21 10 Peak Tracking Total 6 | . 6 3 Tactical Retreats . | . . . Traps | -11 -10 -10 ------- Run | Yrd Mat Sub Traps Triggered 5 | . 4 1 Indirectly . | . . . Trap Hack Attempts . | . . . Triggered . | . . . Disarmed . | . . . Reprogrammed . | . . . Reused . | . . . Traps Extracted . | . . . Installed . | . . . Triggered . | . . . Machines | -11 -10 -10 ---------- Run | Yrd Mat Sub Machines Disabled . | . . . Max in Single Turn . | . . . Machines Repaired . | . . . Machines Dismantled . | . . . Machines Sabotaged . | . . . Overloaded Fab Kills . | . . . Hacking | -11 -10 -10 --------- Run | Yrd Mat Sub Machines Accessed 9 | . 9 . Terminals 7 | . 7 . Fabricators . | . . . Repair Stations . | . . . Recycling Units 2 | . 2 . Scanalyzers . | . . . Garrison Access . | . . . Total Hacks 34 | . 34 . Successful 24 | . 24 . Failed 10 | . 10 . Catastrophic 1 | . 1 . Database Lockouts . | . . . Manual 25 | . 25 . Terminals 24 | . 24 . Fabricators . | . . . Repair Stations . | . . . Recycling Units 10 | . 10 . Scanalyzers . | . . . Garrison Access . | . . . Terminal Hacks 8 | . 8 . Robot Analysis 3 | . 3 . Prototype ID Bank 1 | . 1 . Terminal Index 1 | . 1 . Locate Traps 2 | . 2 . Registered Components 1 | . 1 . Fabricator Hacks . | . . . Repair Station Hacks . | . . . Recycling Unit Hacks 4 | . 4 . Report Inventory 2 | . 2 . Retrieve Components 2 | . 2 . Scanalyzer . | . . . Garrison Access Hacks . | . . . Unauthorized Hacks 12 | . 12 . Terminals 8 | . 8 . Botnet 7 | . 7 . Operators 1 | . 1 . Fabricators . | . . . Repair Stations . | . . . Recycling Units 4 | . 4 . Reject 2 | . 2 . Mask 2 | . 2 . Scanalyzers . | . . . Garrison Access . | . . . Data Cores Recovered . | . . . Used . | . . . Hacking Detections 7 | . 7 . Full Trace Events . | . . . Feedback Events . | . . . Feedback Blocked . | . . . Robot Schematics Acquired . | . . . Robots Built . | . . . Authchips . | . . . Time . | . . . Total Robot Build Rating . | . . . Part Schematics Acquired . | . . . Parts Built . | . . . Authchips . | . . . Time . | . . . Total Part Build Rating . | . . . Parts Repaired . | . . . Time . | . . . Parts Recycled . | . . . Recycled Matter . | . . . Retrieved Matter . | . . . Retrieved Components 3 | . 3 . Parts Scanalyzed . | . . . Part Schematics Acquired . | . . . Parts Damaged . | . . . Bothacking | -11 -10 -10 ------------ Run | Yrd Mat Sub Used RIF Installer . | . . . Robots Hacked . | . . . Non-combat . | . . . Combat . | . . . Robot Hacks Applied . | . . . Relay Couplers Released . | . . . Fabnet Peak Effective % . | . . . Robots Rewired . | . . . Allies Hacked . | . . . Hacks Repelled . | . . . Allies | -11 -10 -10 -------- Run | Yrd Mat Sub Total Allies . | . . . Largest Group . | . . . Highest-Rated Group . | . . . Highest-Rated Ally . | . . . Total Orders . | . . . Ally Attacks . | . . . Total Damage . | . . . Kills . | . . . Allies Corrupted . | . . . Allies Melted . | . . . Intel | -11 -10 -10 ------- Run | Yrd Mat Sub Active Infowar (turns) 605 | 11 594 . Sensors 96 | . 96 . Seismic 509 | 11 498 . Robot Analysis Total 3 | . 3 . Derelict Logs Recovered 1 | . . 1 Drone Launches . | . . . Drone Recoveries . | . . . Exploration | -11 -10 -10 ------------- Run | Yrd Mat Sub Turns Passed 3642 | 171 1651 1820 Spaces Moved 1834 | 129 1040 665 Core 36 | 26 . 10 Treads 107 | . . 107 Legs . | . . . Wheels 1691 | 103 1040 548 Hover . | . . . Flight . | . . . Fastest Speed 50 | 50 100 119 Average Speed 168 | 94 128 244 Slowest Speed 1550 | 150 175 1550 Overloaded Moves . | . . . Propulsion Burnouts . | . . . Robots Hopped . | . . . Potential Cave-ins . | . . . Cave-ins Triggered . | . . . Exploration Rate (%) 48 | 4 100 41 Regions Visited 2 Branch Regions 1 Pre-discovered Areas . | . . . Known Exits Taken . | . . . Unknown Exits Taken 2 | 1 1 . Scrap Searched 6 | . . 6 Spaces Dug . | . . . Terrain Destroyed . | . . . Melee . | . . . Projectile . | . . . AOE . | . . . Terrain Rammed . | . . . Walls Destroyed . | . . . Machines Disabled . | . . . Actions | -11 -10 -10 --------- Run | Yrd Mat Sub Total 2137 | 153 1223 761 Wait 75 | . 51 24 Move 1832 | 128 1039 665 Hop . | . . . Pick Up 48 | 7 33 8 Fast Attach 12 | 6 5 1 Attach 15 | 1 7 7 Detach 2 | . 2 . Swap 10 | . 3 7 Drop 15 | . 12 3 Fire 128 | 11 71 46 Melee . | . . . Ram . | . . . Kick . | . . . Crush . | . . . Escape Stasis . | . . . Rewire . | . . . Trap . | . . . Miscellaneous . | . . . Route ------- -11/Scrapyard -10/Materials (discovered 6 exits: [*Mat x3] / [*Min x2] / [*Sub]) -10/Subcaves History --------- Turn | Location | Event 20 | -11/Scrapyard | Discovered new exit (range 15) 172 | -11/Scrapyard | Entered Materials 314 | -10/Materials | Build established: Mutant 880 | -10/Materials | Discovered new exit (range 16) 898 | -10/Materials | Lost 5 parts (1p1n2u1w) 1178 | -10/Materials | Discovered new exit (range 11) 1398 | -10/Materials | Discovered new exit (range 16) 1466 | -10/Materials | Discovered new exit (range 16) 1602 | -10/Materials | Discovered new exit (range 12) 1812 | -10/Materials | Discovered new exit (range 9) 1823 | -10/Materials | Entered Subcaves 1846 | -10/Subcaves | A swath of the cavern ceiling suddenly collapsed 1999 | -10/Subcaves | Learned Materials trap positions 2089 | -10/Subcaves | Shifting Twisted Machinery released Mak. Light Armor Plating 2092 | -10/Subcaves | Shifting Twisted Machinery released Enh. Flamer 2290 | -10/Subcaves | Shifting Twisted Machinery released Flamer 2339 | -10/Subcaves | Core integrity fell below 50% 2442 | -10/Subcaves | Lost 3 parts (1n2w) 2843 | -10/Subcaves | Disturbed a concealed Subdweller 2856 | -10/Subcaves | Core integrity fell below 20% 2904 | -10/Subcaves | Lost 3 parts (1p2n) 3633 | -10/Subcaves | A Subdweller sparked back to life 3633 | -10/Subcaves | A Subdweller sparked back to life 3643 | -10/Subcaves | Destroyed by SX-0TS(R) with Subdweller Machine Gun Last Messages --------------- 03134_ Dropped Corrupted Sub. Laser. 03168_ Subatomizers dissect the Battle Rifle. 03168_ Acquired Barrage Gun. 03175_ System corrupted: Heat flow error (+194). 03177_ Acquired 10 matter. 03180_ Subatomizers dissect the Battle Rifle. 03321_ System corrupted: Substantial component data lost. 03433_ System corrupted: Energy discharge (-25). 03465_ Acquired 4 matter. 03487_ System corrupted: IFF burst signal emitted. 03595_ <&OF%YPAWMPTE IKLIF,2QCD4LIFU/XPAAWGKW 03630_ System corrupted: Substantial component data lost. 03633_ CD-X3J(R) creaks and sparks as it begins to move. 03633_ TA-EY2(R) creaks and sparks as it begins to move. Map ----- +----------------------------------------------------+ | ?????????????????????????????????????????????????? | | ?????????????????????????????????????????????????? | | ?????????????????????????????????????????????????? | | ?????????????????????????????????????????????????? | | ?????????????????????????????????????????????????? | | ?????????????????????????????????????????????????? | | ?????????????????????????????????????????????????? | | ?????????????????????????????????????????????????? | | ?????????????????????????????????????????????????? | | ?????????????????????????????????????????????????? | | ?????????????????????????????????????????????????? | | ??###????????????????????????????????????????????? | | ### ###??????????????????????????????????????????? | | ##????????????????????????? ???????????????? | | ###???????????????###???? #? ????????????? | | ##?????????#???? ##??? #" ?????????????? | | "## " #??????##? ???? #?? # ??????????????? | | ###" # ###????? #?# ??? #?#RR #??????????????? | | "#### ## #?????# #??? ??? ## R#???????????????? | | #?### ####?# #???? ??# #???????????????? | | #???# ## #?????? #?# #????????????????? | | ###???# #?????## ## ##???????????????? | | ??????# ###????## ;;; #???????????????? | | ??????## #????## #?????????????????? | | ??###?## ####?#### #?????????????????? | | ###"## # "" #???# # #; @ #?????????????????? | | " ###" ##??## ### #?????????????????? | | # ## ##" #### ### ; ##?????????????????? | | #### # " ##?## #??????????????????? | | ??#" ## " ###?# #??????????????????? | | ??## ### #?#### # ###??????????????????? | | ???# " ## "" ##????#####????????????????????? | | #### "" ## "###??????????????????????????????? | | #""" " ###"#????????????????????????????????? | | """ ##% #?########??#??######????????????????? | | ##" ###### #??## ## ## # " #????????????????? | | ?###?????##&#?## " "#????????????????? | | ??????????#%### " ""?????????????????? | | ??????????#&&"" # # #"######????????????????????? | | ????????### " "#####???###?????????????????????? | | ???????## "##???##?? #" ????????????????????? | | ???????# "" ###??## " "?????????????????????? | | ???????## " " #"##|" " "?????????????????????? | | ????????##### " """ "" " ??????????????????????? | | ???????????#" # """# "" ??????????????????????? | | ???????????## #######" " ??????????????????????? | | ???????????# ######""" "??????????????????????? | | ???????????# """##??????????????????????? | | ???????????## #" ###????????????????????? | | ???????????# ### ##" " ##???????????????????? | +----------------------------------------------------+ Best States ------------- Heat Dissipation 35 Energy Generation 10 Energy Capacity 250 Matter Stores 300 Matter Capacity 300 Sight Range 16 Robot Scan Range 14 Terrain Scan Density 10 Armor Coverage 150 Evasion (%) 40 Recoil Reduction 1 Authchip Count 5 Item Schematics ----------------- None Robot Schematics ------------------ None Fabricated ------------ Nothing Repaired ---------- Nothing Alien Tech Used ----------------- None Achievements -------------- None Challenges ------------ None Game ------ Seed AdvancedMolecularArmor Manual? 0 Play Time 00:22:41 Cumulative 295.6 hours Start 2025.08.10 @ 15:11:05 End 2025.08.10 @ 18:16:42 Sessions 8 Manual Loads 0 Difficulty Rogue Special Mode None Game No. 261 Rogue 261 Adventurer 0 Explorer 0 Win Type - Total 1 Types 1/0/0/0/0/0/0/0/0/0 Lore% 67 Gallery% 64 Achievement% 50 Wizard Run 0 Options --------- Layout 2 ASCII 1 Keyboard 1 Movement Numpad Keybinds 0 Fullscreen 2 Font 32/TamsynBold Map View 50x44 Zoom Use 0% Tactical HUD 1 Map Filters NONE Filters NONE Steam 1 RUN: e87728ab-ec25-4ef7-9a6e-23326c80e54b